{"text_format":"3","workbook":"xlsx","n_sheets":3,"sheets":["Sheet1","Sheet2","Sheet3"],"read":"whole","date_system":"1900"}

{"sheet":"Sheet1","index":0,"n_rows":61,"n_cols":9,"rows_kept":61}
["Janitorial Supplies Price Sheet"]
["Requisition #COF-092321"]
[]
["ITEM #","ITEM / DESCRIPTION","User","Estimated Annual Usage","UNIT OF MEASURE","UNIT PRICE","Extended Price","Check box if product varies from description ","ALTERNATE BID ITEM - List Product Information Below & Provide Product Specifications with Bid"]
["Column1","Column2","Column3","Column4","Column5","Column6","Column7","Column8","Column9"]
[1,"Can Liners, Black, 33x39, 2 mil (100/case)","CDD/Welcome Ctr/Library/Civic Ctr/IT/sr ctr/GC",30,"Case",null,{"$f":"Table1[[#This Row],[Column6]]*Table1[[#This Row],[Column4]]","v":{"v":0,"d":"$0.00"}}]
[2,"Can Liners, Black, 38x58, 1.6 mil (100/case of roll)","Library / GC/PD/PW/REC/Parks/FD/ST",185,"Case",null,{"$f":"Table1[[#This Row],[Column6]]*Table1[[#This Row],[Column4]]","v":{"v":0,"d":"$0.00"}}]
[3,"Can Liners, White, 24x32, 0.5 mil  (500/case)","Sr. Ctr/CDD/Library",5,"Case",null,{"$f":"Table1[[#This Row],[Column6]]*Table1[[#This Row],[Column4]]","v":{"v":0,"d":"$0.00"}}]
[4,"Can Liners, White, 30x36, 0.8 mil, 200/case","PD/PW/PARKS/ST/FD",100,"Case",null,{"$f":"Table1[[#This Row],[Column6]]*Table1[[#This Row],[Column4]]","v":{"v":0,"d":"$0.00"}}]
[5,"Cleaner, Blue Cyclone All Purpose Neutral Cleaner (Gallon) No Substitution Dilution Rate 2 oz per gallon","Library / Sr. Center/Civic Ctr/Event Ctr/PD",150,"Each",null,{"$f":"Table1[[#This Row],[Column6]]*Table1[[#This Row],[Column4]]","v":{"v":0,"d":"$0.00"}}]
[6,"Cleaner, Kemzyme QT-Bacteria Enzyme Cleaner and Odor Remover, 32 oz. bottle","PD",90,"Each",null,{"$f":"Table1[[#This Row],[Column6]]*Table1[[#This Row],[Column4]]","v":{"v":0,"d":"$0.00"}}]
[7,"Cleaner, Lysol Disinfectant Cleaner - Gallon No Substitution","PD/PW/ST/REC",130,"Each",null,{"$f":"Table1[[#This Row],[Column6]]*Table1[[#This Row],[Column4]]","v":{"v":0,"d":"$0.00"}}]
[8,"Cleaner, Neutral Multi-Use Cleaner (1 Gallon) (2/case)",null,10,"Case",null,{"$f":"Table1[[#This Row],[Column6]]*Table1[[#This Row],[Column4]]","v":{"v":0,"d":"$0.00"}}]
[8,"Cleaner, Washroom Cleaner (1 Gallon) (2/case)",null,10,"Case",null,{"$f":"Table1[[#This Row],[Column6]]*Table1[[#This Row],[Column4]]","v":{"v":0,"d":"$0.00"}}]
[9,"Disinfectant, Hepastat 256,  (1 Gallon) (2/case) Dilution Rate 1/2 oz per gallon",null,10,"Case",null,{"$f":"Table1[[#This Row],[Column6]]*Table1[[#This Row],[Column4]]","v":{"v":0,"d":"$0.00"}}]
[10,"Disinfectant, Odoban,  (1 Gallon) (4/case) Dilution Rate 4 oz per gallon",null,10,"Case",null,{"$f":"Table1[[#This Row],[Column6]]*Table1[[#This Row],[Column4]]","v":{"v":0,"d":"$0.00"}}]
[11,"Cups, Foam 12 oz (1000/case)","Civic Ctr",1,"Case",null,{"$f":"Table1[[#This Row],[Column6]]*Table1[[#This Row],[Column4]]","v":{"v":0,"d":"$0.00"}}]
[12,"Cups, Foam 16 oz (1000/case)","Sr. Ctr/PD/FD/PW/City Hall",16,"Case",null,{"$f":"Table1[[#This Row],[Column6]]*Table1[[#This Row],[Column4]]","v":{"v":0,"d":"$0.00"}}]
[13,"Cups, Foam 8 oz (1000/case)","Sr. Ctr/PD/FD",10,"Case",null,{"$f":"Table1[[#This Row],[Column6]]*Table1[[#This Row],[Column4]]","v":{"v":0,"d":"$0.00"}}]
[14,"Aerosol, Dispenser Metered",null,110,"Each",null,{"$f":"Table1[[#This Row],[Column6]]*Table1[[#This Row],[Column4]]","v":{"v":0,"d":"$0.00"}}]
[15,"Deoderizer, Dispenser Metered ","Event Ctr/Library/ Civic Ctr/",110,"Each",null,{"$f":"Table1[[#This Row],[Column6]]*Table1[[#This Row],[Column4]]","v":{"v":0,"d":"$0.00"}}]
[16,"Detergent, Dawn Dish , 38 oz. bottle  No Substitution ","PD",200,"Each",null,{"$f":"Table1[[#This Row],[Column6]]*Table1[[#This Row],[Column4]]","v":{"v":0,"d":"$0.00"}}]
[17,"Estesol Hand, Hair, Body Shampoo, 2000 ml","PD",115,"Each",null,{"$f":"Table1[[#This Row],[Column6]]*Table1[[#This Row],[Column4]]","v":{"v":0,"d":"$0.00"}}]
[18,"Glass Cleaner, Heavy Duty, Trigger Spray, 32 oz. (QT)","PD/ST",130,"Each",null,{"$f":"Table1[[#This Row],[Column6]]*Table1[[#This Row],[Column4]]","v":{"v":0,"d":"$0.00"}}]
[19,"Glass Cleaner, Windex, 5 gallon bag in box  No Substitution","Sr. Ctr/Library",4,"Each",null,{"$f":"Table1[[#This Row],[Column6]]*Table1[[#This Row],[Column4]]","v":{"v":0,"d":"$0.00"}}]
[20,"Gloves, Blue Rhino Nitrile Powder Free, 6.0 mil thickness - Small (100/box)","Parks/PD/PW",100,"Box",null,{"$f":"Table1[[#This Row],[Column6]]*Table1[[#This Row],[Column4]]","v":{"v":0,"d":"$0.00"}}]
[21,"Gloves, Blue Rhino Nitrile Powder Free, 6.0 mil thickness - Medium (100/box)","Parks/PD/PW",150,"Box",null,{"$f":"Table1[[#This Row],[Column6]]*Table1[[#This Row],[Column4]]","v":{"v":0,"d":"$0.00"}}]
[22,"Gloves, Blue Rhino Nitrile Powder Free, 6.0 mil thickness - Large (100/box)","Library/Parks/PD/PW",150,"Box",null,{"$f":"Table1[[#This Row],[Column6]]*Table1[[#This Row],[Column4]]","v":{"v":0,"d":"$0.00"}}]
[23,"Gloves, Blue Rhino Nitrile Powder Free, 6.0 mil thickness -X Large (100/box)","Parks/PD/PW",150,"Box",null,{"$f":"Table1[[#This Row],[Column6]]*Table1[[#This Row],[Column4]]","v":{"v":0,"d":"$0.00"}}]
[24,"Gloves, Latex Powder Free - Small (100/box)","PD",80,"Box",null,{"$f":"Table1[[#This Row],[Column6]]*Table1[[#This Row],[Column4]]","v":{"v":0,"d":"$0.00"}}]
[25,"Gloves, Latex Powder Free - Medium (100/box)","Civic Ctr/PD",80,"Box",null,{"$f":"Table1[[#This Row],[Column6]]*Table1[[#This Row],[Column4]]","v":{"v":0,"d":"$0.00"}}]
[26,"Gloves, Latex Powder Free - Large (100/box)","Civic Ctr/PD",175,"Box",null,{"$f":"Table1[[#This Row],[Column6]]*Table1[[#This Row],[Column4]]","v":{"v":0,"d":"$0.00"}}]
[27,"Gloves, Latex Powder Free - Xlarge (100/box)","PD",115,"Box",null,{"$f":"Table1[[#This Row],[Column6]]*Table1[[#This Row],[Column4]]","v":{"v":0,"d":"$0.00"}}]
[28,"Laundry Solution, Attack Bio-Spray  Enzyme Cleaner - 5 gallon pail","PD",100,"Each",null,{"$f":"Table1[[#This Row],[Column6]]*Table1[[#This Row],[Column4]]","v":{"v":0,"d":"$0.00"}}]
[29,"Paper Towels, Center Pull (white), 2 ply, 600 sheets per roll, 450' per roll, 6 rolls per case","Rec/ST/Parks/",400,"Case",null,{"$f":"Table1[[#This Row],[Column6]]*Table1[[#This Row],[Column4]]","v":{"v":0,"d":"$0.00"}}]
[30,"Paper Towels, C-Fold 1 ply Bleached (2400 sheets)","Civic Ctr/",15,"Case",null,{"$f":"Table1[[#This Row],[Column6]]*Table1[[#This Row],[Column4]]","v":{"v":0,"d":"$0.00"}}]
[31,"Paper Towels, Hardwound 700' (6/case)","Gcreek/Library",15,"Case",null,{"$f":"Table1[[#This Row],[Column6]]*Table1[[#This Row],[Column4]]","v":{"v":0,"d":"$0.00"}}]
[32,"Paper Towels, Kitchen, Heavenly Soft 30/85","Sr. Ctr/civic Ctr/Welcome Ctr/GC/Parks/Rec/ST/PW",50,"Case",null,{"$f":"Table1[[#This Row],[Column6]]*Table1[[#This Row],[Column4]]","v":{"v":0,"d":"$0.00"}}]
[33,"Paper Towels, Scott Hardwound, 1 ply, 8\"x950' (6/case)","Pam/FD",50,"Case",null,{"$f":"Table1[[#This Row],[Column6]]*Table1[[#This Row],[Column4]]","v":{"v":0,"d":"$0.00"}}]
[34,"Paper Towels, White Multi-Fold, 2 ply, 9.25\"W x 9.5\"L, 250/pkg, 4000 per case","GC/PD/PW/ST",65,"Case",null,{"$f":"Table1[[#This Row],[Column6]]*Table1[[#This Row],[Column4]]","v":{"v":0,"d":"$0.00"}}]
[35,"Paper Towels, White Roll Towel 800', 6/case","PD",40,"Case",null,{"$f":"Table1[[#This Row],[Column6]]*Table1[[#This Row],[Column4]]","v":{"v":0,"d":"$0.00"}}]
[36,"Sanitizer, Hand, Pump Bottle 8 oz. (12/case) ","PD",30,"Case",null,{"$f":"Table1[[#This Row],[Column6]]*Table1[[#This Row],[Column4]]","v":{"v":0,"d":"$0.00"}}]
[37,"Sanitizer, Purell Hand Sanitizer Pump (2 L)","GC",30,"Each",null,{"$f":"Table1[[#This Row],[Column6]]*Table1[[#This Row],[Column4]]","v":{"v":0,"d":"$0.00"}}]
[38,"Soap, 4-n-1 Moisturizing, 1000 ml","Parks/ST/Rec/PW/5-plex",175,"Each",null,{"$f":"Table1[[#This Row],[Column6]]*Table1[[#This Row],[Column4]]","v":{"v":0,"d":"$0.00"}}]
[39,"Soap, Dial, Antibacterial (Gallon)","Gcreek/",10,"Each",null,{"$f":"Table1[[#This Row],[Column6]]*Table1[[#This Row],[Column4]]","v":{"v":0,"d":"$0.00"}}]
[40,"Soap, Foaming Antibacterial, 1 liter (8/case)","Library",25,"Each",null,{"$f":"Table1[[#This Row],[Column6]]*Table1[[#This Row],[Column4]]","v":{"v":0,"d":"$0.00"}}]
[41,"Tablecloth Covering, 40x300, White Embossed Poly","Civic Ctr",10,"Each",null,{"$f":"Table1[[#This Row],[Column6]]*Table1[[#This Row],[Column4]]","v":{"v":0,"d":"$0.00"}}]
[42,"Tissue, Toilet 2-ply Heavenly Soft (96/case)","Civic Ctr/CDD/Library/PD/Parks/PW",75,"Case",null,{"$f":"Table1[[#This Row],[Column6]]*Table1[[#This Row],[Column4]]","v":{"v":0,"d":"$0.00"}}]
[43,"Tissue, Toilet Jumbo 9\" with core, 2ply 700' per roll (12/case)","Library/GC/Parks/Rec/ST",350,"Case",null,{"$f":"Table1[[#This Row],[Column6]]*Table1[[#This Row],[Column4]]","v":{"v":0,"d":"$0.00"}}]
[44,"Tissue, Toilet Junior Jumbo 9\", coreless, 2ply 700' per roll (12/case)",null,350,"Case",null,{"$f":"Table1[[#This Row],[Column6]]*Table1[[#This Row],[Column4]]","v":{"v":0,"d":"$0.00"}}]
[45,"Tissue, Facial",null,10,"Each",null,{"$f":"Table1[[#This Row],[Column6]]*Table1[[#This Row],[Column4]]","v":{"v":0,"d":"$0.00"}}]
[46,"Urinal Screens Wave Style, 2 per pack","PD/PARKS/ST/REC/PW",385,"Each",null,{"$f":"Table1[[#This Row],[Column6]]*Table1[[#This Row],[Column4]]","v":{"v":0,"d":"$0.00"}}]
[47,"Wipes, Clorox Disinfectant Wipes (35 ct)","PD/Rec/ST",400,"Each",null,{"$f":"Table1[[#This Row],[Column6]]*Table1[[#This Row],[Column4]]","v":{"v":0,"d":"$0.00"}}]
[48,"Wipes, Clorox Disinfectant (75 ct)","GC",100,"Each",null,{"$f":"Table1[[#This Row],[Column6]]*Table1[[#This Row],[Column4]]","v":{"v":0,"d":"$0.00"}}]
[null,"Total",{"$nulls":4},{"$f":"SUM(G6:G54)","v":{"v":0,"d":"$0.00"}}]
[]
[null,"Company:"]
[null,"Submitted By:"]
[null,"Address:"]
[]
[null,"Phone:"]

{"sheet":"Sheet2","index":1,"n_rows":0,"n_cols":0,"rows_kept":0}

{"sheet":"Sheet3","index":2,"n_rows":0,"n_cols":0,"rows_kept":0}